Workbook

Sheet Sheet1
A1: Date | B1: Temp 1 | C1: Temp 2 | D1: Pressure | F1: Time and Date | G1: Temp 1 Ave | H1: Temp 2 Ave | I1: Total Ave
A2: 2012.02.03.00.00.26 | B2: 89.1 | C2: 89.16 | D2: 3.09 | F2: 2012-02-03 | G2: =AVERAGE(B2:B101) -> 89.0663 | H2: =AVERAGE(C2:C101) -> 89.1516 | I2: =AVERAGE(G2:H2) -> 89.10895
A3: 2012.02.03.00.01.02 | B3: 89.08 | C3: 89.16 | D3: 2.7 | F3: =F2+0.041666667 -> 2012-02-03T01:00:00 | G3: =AVERAGE(B102:B201) -> 89.0621 | H3: =AVERAGE(C102:C201) -> 89.1478 | I3: =AVERAGE(G3:H3) -> 89.10495
A4: 2012.02.03.00.01.38 | B4: 89.1 | C4: 89.16 | D4: 2.73 | F4: =F3+0.041666667 -> 2012-02-03T02:00:00 | G4: =AVERAGE(B202:B301) -> 89.0486 | H4: =AVERAGE(C202:C301) -> 89.1261 | I4: 89.08735
A5: 2012.02.03.00.02.14 | B5: 89.1 | C5: 89.16 | D5: 3.01 | F5: 2012-02-03T03:00:00 | G5: =AVERAGE(B302:B401) -> 89.0606 | H5: =AVERAGE(C302:C401) -> 89.1465 | I5: 89.10355
A6: 2012.02.03.00.02.50 | B6: 89.09 | C6: 89.16 | D6: 2.62 | F6: 2012-02-03T04:00:00 | G6: =AVERAGE(B402:B500) -> 89.05787879 | H6: =AVERAGE(C402:C500) -> 89.14070707 | I6: 89.09929293
A7: 2012.02.03.00.03.26 | B7: 89.07 | C7: 89.16 | D7: 2.87 | F7: 2012-02-03T05:00:00 | G7: =AVERAGE(B501:B600) -> 89.0518 | H7: =AVERAGE(C501:C600) -> 89.1291 | I7: 89.09045
A8: 2012.02.03.00.04.02 | B8: 89.1 | C8: 89.16 | D8: 2.73 | F8: 2012-02-03T06:00:00 | G8: =AVERAGE(B601:B700) -> 89.0493 | H8: =AVERAGE(C601:C700) -> 89.1275 | I8: 89.0884
A9: 2012.02.03.00.04.38 | B9: 89.08 | C9: 89.16 | D9: 2.9 | F9: 2012-02-03T07:00:00 | G9: =AVERAGE(B701:B800) -> 89.0424 | H9: =AVERAGE(C701:C800) -> 89.1234 | I9: 89.0829
A10: 2012.02.03.00.05.14 | B10: 89.08 | C10: 89.16 | D10: 2.85 | F10: 2012-02-03T08:00:00 | G10: =AVERAGE(B801:B900) -> 89.0492 | H10: =AVERAGE(C801:C900) -> 89.1301 | I10: 89.08965
A11: 2012.02.03.00.05.50 | B11: 89.08 | C11: 89.16 | D11: 2.96 | F11: 2012-02-03T09:00:00 | G11: =AVERAGE(B901:B1000) -> 89.0461 | H11: =AVERAGE(C901:C1000) -> 89.1241 | I11: 89.0851
A12: 2012.02.03.00.06.27 | B12: 89.07 | C12: 89.16 | D12: 3.11 | F12: 2012-02-03T10:00:00 | G12: =AVERAGE(B1001:B1100) -> 89.0672 | H12: =AVERAGE(C1001:C1100) -> 89.1498 | I12: 89.1085
A13: 2012.02.03.00.07.03 | B13: 89.08 | C13: 89.15 | D13: 2.99 | F13: 2012-02-03T11:00:00 | G13: =AVERAGE(B1101:B1200) -> 89.0791 | H13: =AVERAGE(C1101:C1200) -> 89.1592 | I13: 89.11915
A14: 2012.02.03.00.07.39 | B14: 89.06 | C14: 89.16 | D14: 2.73 | F14: 2012-02-03T12:00:00 | G14: =AVERAGE(B1201:B1300) -> 89.0673 | H14: =AVERAGE(C1201:C1300) -> 89.1541 | I14: 89.1107
A15: 2012.02.03.00.08.15 | B15: 89.08 | C15: 89.14 | D15: 2.92 | F15: 2012-02-03T13:00:00 | G15: =AVERAGE(B1301:B1400) -> 89.0575 | H15: =AVERAGE(C1301:C1400) -> 89.1381 | I15: 89.0978
A16: 2012.02.03.00.08.51 | B16: 89.06 | C16: 89.16 | D16: 2.92 | F16: 2012-02-03T14:00:00 | G16: =AVERAGE(B1401:B1500) -> 89.0536 | H16: =AVERAGE(C1401:C1500) -> 89.1315 | I16: 89.09255
A17: 2012.02.03.00.09.27 | B17: 89.08 | C17: 89.16 | D17: 3.09 | F17: 2012-02-03T15:00:00 | G17: =AVERAGE(B1501:B1600) -> 89.0568 | H17: =AVERAGE(C1501:C1600) -> 89.1354 | I17: 89.0961
A18: 2012.02.03.00.10.03 | B18: 89.07 | C18: 89.16 | D18: 2.71 | F18: 2012-02-03T16:00:00 | G18: =AVERAGE(B1601:B1700) -> 89.0965 | H18: =AVERAGE(C1601:C1700) -> 89.1804 | I18: 89.13845
A19: 2012.02.03.00.10.39 | B19: 89.08 | C19: 89.15 | D19: 2.81 | F19: 2012-02-03T17:00:00 | G19: =AVERAGE(B1701:B1800) -> 89.103 | H19: =AVERAGE(C1701:C1800) -> 89.1908 | I19: 89.1469
A20: 2012.02.03.00.11.15 | B20: 89.08 | C20: 89.18 | D20: 2.67 | F20: =F19+0.041666667 -> 2012-02-03T18:00:00.001 | G20: =AVERAGE(B1801:B1900) -> 89.1052 | H20: =AVERAGE(C1801:C1900) -> 89.1832 | I20: 89.1442
A21: 2012.02.03.00.11.51 | B21: 89.06 | C21: 89.16 | D21: 2.97 | F21: 2012-02-03T19:00:00.001 | G21: =AVERAGE(B1901:B2000) -> 89.1517 | H21: =AVERAGE(C1901:C2000) -> 89.24 | I21: 89.19585
A22: 2012.02.03.00.12.27 | B22: 89.1 | C22: 89.16 | D22: 2.93 | F22: 2012-02-03T20:00:00.001 | G22: =AVERAGE(B2001:B2100) -> 89.151 | H22: =AVERAGE(C2001:C2100) -> 89.2439 | I22: 89.19745
A23: 2012.02.03.00.13.03 | B23: 89.08 | C23: 89.16 | D23: 2.96 | F23: 2012-02-03T21:00:00.001 | G23: =AVERAGE(B2101:B2200) -> 89.1479 | H23: =AVERAGE(C2101:C2200) -> 89.2353 | I23: 89.1916
A24: 2012.02.03.00.13.39 | B24: 89.07 | C24: 89.16 | D24: 2.76 | F24: 2012-02-03T22:00:00.001 | G24: =AVERAGE(B2201:B2300) -> 89.1492 | H24: =AVERAGE(C2201:C2300) -> 89.2377 | I24: 89.19345
A25: 2012.02.03.00.14.15 | B25: 89.06 | C25: 89.16 | D25: 2.55 | F25: 2012-02-03T23:00:00.001 | G25: =AVERAGE(B2301:B2400) -> 89.1494 | H25: =AVERAGE(C2301:C2400) -> 89.24 | I25: 89.1947
A26: 2012.02.03.00.14.51 | B26: 89.06 | C26: 89.16 | D26: 2.94
A27: 2012.02.03.00.15.27 | B27: 89.06 | C27: 89.16 | D27: 2.72
A28: 2012.02.03.00.16.03 | B28: 89.08 | C28: 89.16 | D28: 2.63
A29: 2012.02.03.00.16.39 | B29: 89.06 | C29: 89.16 | D29: 2.71
A30: 2012.02.03.00.17.15 | B30: 89.06 | C30: 89.16 | D30: 2.63
A31: 2012.02.03.00.17.51 | B31: 89.06 | C31: 89.15 | D31: 2.74
A32: 2012.02.03.00.18.27 | B32: 89.06 | C32: 89.16 | D32: 2.89
A33: 2012.02.03.00.19.03 | B33: 89.06 | C33: 89.16 | D33: 2.8
A34: 2012.02.03.00.19.39 | B34: 89.08 | C34: 89.14 | D34: 2.97
A35: 2012.02.03.00.20.15 | B35: 89.07 | C35: 89.15 | D35: 2.7
A36: 2012.02.03.00.20.51 | B36: 89.06 | C36: 89.15 | D36: 2.77
A37: 2012.02.03.00.21.27 | B37: 89.08 | C37: 89.16 | D37: 2.86
A38: 2012.02.03.00.22.03 | B38: 89.06 | C38: 89.16 | D38: 2.85
A39: 2012.02.03.00.22.39 | B39: 89.06 | C39: 89.14 | D39: 2.81
A40: 2012.02.03.00.23.15 | B40: 89.06 | C40: 89.16 | D40: 2.78
A41: 2012.02.03.00.23.51 | B41: 89.06 | C41: 89.16 | D41: 2.85
A42: 2012.02.03.00.24.30 | B42: 89.06 | C42: 89.14 | D42: 2.7
A43: 2012.02.03.00.25.06 | B43: 89.06 | C43: 89.14 | D43: 2.82
A44: 2012.02.03.00.25.42 | B44: 89.04 | C44: 89.15 | D44: 2.71
A45: 2012.02.03.00.26.18 | B45: 89.06 | C45: 89.12 | D45: 2.67
A46: 2012.02.03.00.26.54 | B46: 89.06 | C46: 89.16 | D46: 2.83
A47: 2012.02.03.00.27.30 | B47: 89.06 | C47: 89.16 | D47: 3
A48: 2012.02.03.00.28.06 | B48: 89.06 | C48: 89.14 | D48: 2.79
A49: 2012.02.03.00.28.42 | B49: 89.06 | C49: 89.14 | D49: 2.75
A50: 2012.02.03.00.29.19 | B50: 89.06 | C50: 89.15 | D50: 3.02
A51: 2012.02.03.00.29.55 | B51: 89.06 | C51: 89.15 | D51: 2.99
A52: 2012.02.03.00.30.31 | B52: 89.06 | C52: 89.14 | D52: 2.76
A53: 2012.02.03.00.31.07 | B53: 89.06 | C53: 89.16 | D53: 2.97
A54: 2012.02.03.00.31.43 | B54: 89.06 | C54: 89.16 | D54: 2.86
A55: 2012.02.03.00.32.19 | B55: 89.06 | C55: 89.16 | D55: 2.98
A56: 2012.02.03.00.32.55 | B56: 89.06 | C56: 89.16 | D56: 2.96
A57: 2012.02.03.00.33.31 | B57: 89.06 | C57: 89.15 | D57: 3.12
A58: 2012.02.03.00.34.07 | B58: 89.08 | C58: 89.16 | D58: 3.02
A59: 2012.02.03.00.34.43 | B59: 89.06 | C59: 89.16 | D59: 2.86
A60: 2012.02.03.00.35.19 | B60: 89.06 | C60: 89.14 | D60: 3.03
A61: 2012.02.03.00.35.55 | B61: 89.06 | C61: 89.16 | D61: 2.84
A62: 2012.02.03.00.36.31 | B62: 89.06 | C62: 89.13 | D62: 2.89
A63: 2012.02.03.00.37.07 | B63: 89.08 | C63: 89.15 | D63: 2.77
A64: 2012.02.03.00.37.43 | B64: 89.08 | C64: 89.16 | D64: 2.99
A65: 2012.02.03.00.38.19 | B65: 89.06 | C65: 89.16 | D65: 2.51
A66: 2012.02.03.00.38.55 | B66: 89.06 | C66: 89.14 | D66: 2.84
A67: 2012.02.03.00.39.31 | B67: 89.07 | C67: 89.15 | D67: 2.67
A68: 2012.02.03.00.40.07 | B68: 89.06 | C68: 89.15 | D68: 3.02
A69: 2012.02.03.00.40.43 | B69: 89.06 | C69: 89.14 | D69: 2.9
A70: 2012.02.03.00.41.19 | B70: 89.06 | C70: 89.16 | D70: 2.99
A71: 2012.02.03.00.41.55 | B71: 89.08 | C71: 89.16 | D71: 3.06
A72: 2012.02.03.00.42.31 | B72: 89.06 | C72: 89.16 | D72: 3.03
A73: 2012.02.03.00.43.07 | B73: 89.06 | C73: 89.15 | D73: 2.72
A74: 2012.02.03.00.43.43 | B74: 89.06 | C74: 89.15 | D74: 2.58
A75: 2012.02.03.00.44.19 | B75: 89.08 | C75: 89.16 | D75: 2.89
A76: 2012.02.03.00.44.55 | B76: 89.06 | C76: 89.14 | D76: 2.73
A77: 2012.02.03.00.45.31 | B77: 89.06 | C77: 89.12 | D77: 2.87
A78: 2012.02.03.00.46.07 | B78: 89.06 | C78: 89.15 | D78: 2.66
A79: 2012.02.03.00.46.43 | B79: 89.06 | C79: 89.15 | D79: 2.88
A80: 2012.02.03.00.47.19 | B80: 89.06 | C80: 89.13 | D80: 2.84
A81: 2012.02.03.00.47.55 | B81: 89.06 | C81: 89.14 | D81: 2.89
A82: 2012.02.03.00.48.31 | B82: 89.06 | C82: 89.14 | D82: 2.91
A83: 2012.02.03.00.49.07 | B83: 89.06 | C83: 89.16 | D83: 2.94
A84: 2012.02.03.00.49.43 | B84: 89.06 | C84: 89.15 | D84: 3.03
A85: 2012.02.03.00.50.19 | B85: 89.06 | C85: 89.15 | D85: 2.96
A86: 2012.02.03.00.50.55 | B86: 89.06 | C86: 89.16 | D86: 3.04
A87: 2012.02.03.00.51.31 | B87: 89.06 | C87: 89.14 | D87: 3.05
A88: 2012.02.03.00.52.07 | B88: 89.06 | C88: 89.14 | D88: 2.78
A89: 2012.02.03.00.52.43 | B89: 89.06 | C89: 89.15 | D89: 2.74
A90: 2012.02.03.00.53.19 | B90: 89.06 | C90: 89.15 | D90: 2.87
A91: 2012.02.03.00.53.55 | B91: 89.06 | C91: 89.13 | D91: 2.92
A92: 2012.02.03.00.54.31 | B92: 89.06 | C92: 89.14 | D92: 2.97
A93: 2012.02.03.00.55.07 | B93: 89.06 | C93: 89.12 | D93: 2.93
A94: 2012.02.03.00.55.43 | B94: 89.06 | C94: 89.16 | D94: 2.69
A95: 2012.02.03.00.56.19 | B95: 89.06 | C95: 89.15 | D95: 2.56
A96: 2012.02.03.00.56.55 | B96: 89.06 | C96: 89.13 | D96: 2.93
A97: 2012.02.03.00.57.31 | B97: 89.06 | C97: 89.15 | D97: 2.7
A98: 2012.02.03.00.58.07 | B98: 89.06 | C98: 89.14 | D98: 2.78
A99: 2012.02.03.00.58.43 | B99: 89.06 | C99: 89.14 | D99: 2.85
A100: 2012.02.03.00.59.19 | B100: 89.06 | C100: 89.14 | D100: 3.18
A101: 2012.02.03.00.59.55 | B101: 89.06 | C101: 89.16 | D101: 2.92
A102: 2012.02.03.01.00.31 | B102: 89.06 | C102: 89.13 | D102: 3.03
A103: 2012.02.03.01.01.07 | B103: 89.03 | C103: 89.13 | D103: 2.98
A104: 2012.02.03.01.01.43 | B104: 89.06 | C104: 89.16 | D104: 2.89
A105: 2012.02.03.01.02.19 | B105: 89.06 | C105: 89.16 | D105: 2.9
A106: 2012.02.03.01.02.55 | B106: 89.06 | C106: 89.16 | D106: 2.86
A107: 2012.02.03.01.03.31 | B107: 89.06 | C107: 89.15 | D107: 2.96
A108: 2012.02.03.01.04.07 | B108: 89.06 | C108: 89.13 | D108: 3
A109: 2012.02.03.01.04.43 | B109: 89.06 | C109: 89.14 | D109: 2.71
A110: 2012.02.03.01.05.19 | B110: 89.06 | C110: 89.14 | D110: 3
A111: 2012.02.03.01.05.55 | B111: 89.08 | C111: 89.16 | D111: 2.74
A112: 2012.02.03.01.06.31 | B112: 89.07 | C112: 89.16 | D112: 2.82
A113: 2012.02.03.01.07.07 | B113: 89.06 | C113: 89.16 | D113: 3.04
A114: 2012.02.03.01.07.43 | B114: 89.06 | C114: 89.15 | D114: 3.04
A115: 2012.02.03.01.08.19 | B115: 89.06 | C115: 89.14 | D115: 2.98
A116: 2012.02.03.01.08.55 | B116: 89.06 | C116: 89.16 | D116: 2.71
A117: 2012.02.03.01.09.31 | B117: 89.06 | C117: 89.16 | D117: 2.77
A118: 2012.02.03.01.10.07 | B118: 89.06 | C118: 89.15 | D118: 2.68
A119: 2012.02.03.01.10.43 | B119: 89.06 | C119: 89.15 | D119: 2.86
A120: 2012.02.03.01.11.19 | B120: 89.06 | C120: 89.15 | D120: 2.73
A121: 2012.02.03.01.11.55 | B121: 89.06 | C121: 89.16 | D121: 2.52
A122: 2012.02.03.01.12.31 | B122: 89.06 | C122: 89.14 | D122: 2.59
A123: 2012.02.03.01.13.07 | B123: 89.06 | C123: 89.14 | D123: 2.88
A124: 2012.02.03.01.13.43 | B124: 89.06 | C124: 89.15 | D124: 3.05
A125: 2012.02.03.01.14.19 | B125: 89.06 | C125: 89.15 | D125: 2.99
A126: 2012.02.03.01.14.55 | B126: 89.06 | C126: 89.14 | D126: 3.05
A127: 2012.02.03.01.15.31 | B127: 89.06 | C127: 89.12 | D127: 2.72
A128: 2012.02.03.01.16.07 | B128: 89.06 | C128: 89.12 | D128: 2.92
A129: 2012.02.03.01.16.43 | B129: 89.06 | C129: 89.12 | D129: 3.08
A130: 2012.02.03.01.17.19 | B130: 89.06 | C130: 89.15 | D130: 2.91
A131: 2012.02.03.01.17.56 | B131: 89.06 | C131: 89.13 | D131: 2.87
A132: 2012.02.03.01.18.32 | B132: 89.08 | C132: 89.14 | D132: 3.09
A133: 2012.02.03.01.19.08 | B133: 89.06 | C133: 89.14 | D133: 2.93
A134: 2012.02.03.01.19.44 | B134: 89.06 | C134: 89.14 | D134: 2.85
A135: 2012.02.03.01.20.20 | B135: 89.06 | C135: 89.16 | D135: 2.91
A136: 2012.02.03.01.20.56 | B136: 89.06 | C136: 89.15 | D136: 2.7
A137: 2012.02.03.01.21.32 | B137: 89.06 | C137: 89.16 | D137: 2.96
A138: 2012.02.03.01.22.08 | B138: 89.06 | C138: 89.14 | D138: 2.97
A139: 2012.02.03.01.22.44 | B139: 89.06 | C139: 89.14 | D139: 3
A140: 2012.02.03.01.23.20 | B140: 89.06 | C140: 89.16 | D140: 3.04
A141: 2012.02.03.01.23.56 | B141: 89.06 | C141: 89.15 | D141: 2.96
A142: 2012.02.03.01.24.32 | B142: 89.06 | C142: 89.13 | D142: 3.09
A143: 2012.02.03.01.25.08 | B143: 89.06 | C143: 89.14 | D143: 2.9
A144: 2012.02.03.01.25.44 | B144: 89.06 | C144: 89.16 | D144: 3.08
A145: 2012.02.03.01.26.20 | B145: 89.06 | C145: 89.16 | D145: 2.94
A146: 2012.02.03.01.26.56 | B146: 89.07 | C146: 89.16 | D146: 2.81
A147: 2012.02.03.01.27.32 | B147: 89.06 | C147: 89.16 | D147: 2.97
A148: 2012.02.03.01.28.08 | B148: 89.06 | C148: 89.13 | D148: 3.02
A149: 2012.02.03.01.28.44 | B149: 89.08 | C149: 89.16 | D149: 3.05
A150: 2012.02.03.01.29.20 | B150: 89.08 | C150: 89.16 | D150: 2.78
A151: 2012.02.03.01.29.56 | B151: 89.08 | C151: 89.16 | D151: 2.69
A152: 2012.02.03.01.30.32 | B152: 89.06 | C152: 89.15 | D152: 2.77
A153: 2012.02.03.01.31.08 | B153: 89.06 | C153: 89.15 | D153: 2.99
A154: 2012.02.03.01.31.44 | B154: 89.06 | C154: 89.16 | D154: 3.01
A155: 2012.02.03.01.32.20 | B155: 89.08 | C155: 89.14 | D155: 2.85
A156: 2012.02.03.01.32.56 | B156: 89.06 | C156: 89.14 | D156: 2.91
A157: 2012.02.03.01.33.32 | B157: 89.06 | C157: 89.16 | D157: 2.86
A158: 2012.02.03.01.34.08 | B158: 89.06 | C158: 89.15 | D158: 2.75
A159: 2012.02.03.01.34.44 | B159: 89.08 | C159: 89.13 | D159: 2.73
A160: 2012.02.03.01.35.20 | B160: 89.08 | C160: 89.16 | D160: 2.77
A161: 2012.02.03.01.35.56 | B161: 89.06 | C161: 89.16 | D161: 2.92
A162: 2012.02.03.01.36.32 | B162: 89.06 | C162: 89.14 | D162: 2.96
A163: 2012.02.03.01.37.08 | B163: 89.06 | C163: 89.15 | D163: 2.72
A164: 2012.02.03.01.37.44 | B164: 89.06 | C164: 89.16 | D164: 2.77
A165: 2012.02.03.01.38.20 | B165: 89.06 | C165: 89.16 | D165: 2.86
A166: 2012.02.03.01.38.56 | B166: 89.08 | C166: 89.16 | D166: 2.68
A167: 2012.02.03.01.39.32 | B167: 89.06 | C167: 89.14 | D167: 2.75
A168: 2012.02.03.01.40.08 | B168: 89.06 | C168: 89.16 | D168: 2.83
A169: 2012.02.03.01.40.44 | B169: 89.06 | C169: 89.16 | D169: 2.68
A170: 2012.02.03.01.41.20 | B170: 89.06 | C170: 89.16 | D170: 2.79
A171: 2012.02.03.01.41.56 | B171: 89.06 | C171: 89.13 | D171: 2.7
A172: 2012.02.03.01.42.32 | B172: 89.06 | C172: 89.14 | D172: 3.03
A173: 2012.02.03.01.43.08 | B173: 89.06 | C173: 89.16 | D173: 3.11
A174: 2012.02.03.01.43.44 | B174: 89.06 | C174: 89.12 | D174: 2.91
A175: 2012.02.03.01.44.20 | B175: 89.06 | C175: 89.13 | D175: 2.67
A176: 2012.02.03.01.44.56 | B176: 89.06 | C176: 89.12 | D176: 2.67
A177: 2012.02.03.01.45.32 | B177: 89.06 | C177: 89.14 | D177: 2.95
A178: 2012.02.03.01.46.08 | B178: 89.06 | C178: 89.14 | D178: 2.75
A179: 2012.02.03.01.46.44 | B179: 89.06 | C179: 89.16 | D179: 3.05
A180: 2012.02.03.01.47.20 | B180: 89.06 | C180: 89.16 | D180: 2.96
A181: 2012.02.03.01.47.56 | B181: 89.06 | C181: 89.16 | D181: 3.09
A182: 2012.02.03.01.48.32 | B182: 89.06 | C182: 89.15 | D182: 2.8
A183: 2012.02.03.01.49.08 | B183: 89.06 | C183: 89.16 | D183: 2.85
A184: 2012.02.03.01.49.44 | B184: 89.08 | C184: 89.16 | D184: 2.97
A185: 2012.02.03.01.50.20 | B185: 89.06 | C185: 89.16 | D185: 2.89
A186: 2012.02.03.01.50.56 | B186: 89.06 | C186: 89.13 | D186: 2.97
A187: 2012.02.03.01.51.32 | B187: 89.06 | C187: 89.15 | D187: 2.72
A188: 2012.02.03.01.52.08 | B188: 89.06 | C188: 89.15 | D188: 2.63
A189: 2012.02.03.01.52.44 | B189: 89.06 | C189: 89.16 | D189: 2.8
A190: 2012.02.03.01.53.20 | B190: 89.06 | C190: 89.14 | D190: 2.93
A191: 2012.02.03.01.53.56 | B191: 89.06 | C191: 89.16 | D191: 2.66
A192: 2012.02.03.01.54.32 | B192: 89.06 | C192: 89.16 | D192: 2.6
A193: 2012.02.03.01.55.08 | B193: 89.06 | C193: 89.15 | D193: 2.67
A194: 2012.02.03.01.55.44 | B194: 89.06 | C194: 89.16 | D194: 2.9
A195: 2012.02.03.01.56.20 | B195: 89.06 | C195: 89.12 | D195: 2.81
A196: 2012.02.03.01.56.56 | B196: 89.08 | C196: 89.14 | D196: 2.8
A197: 2012.02.03.01.57.32 | B197: 89.06 | C197: 89.16 | D197: 2.75
A198: 2012.02.03.01.58.08 | B198: 89.06 | C198: 89.16 | D198: 2.78
A199: 2012.02.03.01.58.44 | B199: 89.06 | C199: 89.12 | D199: 2.99
A200: 2012.02.03.01.59.20 | B200: 89.06 | C200: 89.14 | D200: 3.08
... 2200 more rows

Sheet Sheet2

Sheet Sheet3
